bitfinex-derivatives/quotes_ETHF0:USTF0_20240904
["timestamp","ask_amount","ask_price","bid_price","bid_amount"]
[1725493110683,0.00610886,2457.0,2456.9,0.3701]
[1725493111481,0.00610886,2457.0,2456.9,0.77713]
[1725493111687,0.00610886,2457.0,2456.9,0.3701]
[1725493112083,0.00610886,2457.0,2456.9,4.84753]
[1725493114383,0.00610886,2457.0,2456.9,0.77713]
[1725493115292,0.00610886,2457.0,2456.9,4.84753]
[1725493115490,1.17610886,2457.0,2456.9,0.3701]
[1725493115687,1.17610886,2457.0,2456.8,0.40704]
[1725493116695,1.91370886,2457.0,2456.8,0.40704]
[1725493116894,1.91370886,2457.0,2456.7,0.79986]
[1725493117190,1.91370886,2457.0,2456.7,0.3928]
[1725493117191,2.32072886,2457.0,2456.7,0.3928]
[1725493117385,0.3659,2456.9,2456.7,0.3928]
[1725493118591,0.3659,2456.9,2456.7,0.79986]
[1725493120494,1.54240886,2457.0,2456.7,0.79986]
[1725493120693,1.17610886,2457.0,2456.7,0.79986]
[1725493120895,0.00610886,2457.0,2456.8,0.40704]
[1725493121093,4.0704,2456.9,2455.9,0.00610886]
[1725493121297,0.19890458,2456.0,2455.9,0.00610886]
[1725493121496,2.38686458,2456.0,2455.9,0.00610886]
[1725493121686,0.40723,2455.7,2455.1,0.92714574]
[1725493121888,3.81920625,2455.9,2455.4,0.40727]
[1725493122292,3.81920625,2455.9,2455.5,0.3676]
[1725493122493,3.2078,2455.9,2455.5,0.77486]
[1725493122688,3.21390886,2455.9,2455.5,0.78096886]
[1725493122994,3.21390886,2455.9,2455.6,0.78]
[1725493123898,3.62110886,2455.9,2455.6,0.78]
[1725493125711,0.41330886,2455.9,2455.6,0.78]
[1725493127602,0.00610886,2455.9,2455.7,0.40723]
[1725493128414,0.00610886,2455.9,2455.6,1.18724]
[1725493128608,0.00610886,2455.9,2455.7,0.40723]
[1725493129706,0.00610886,2455.9,2455.6,1.18724]
[1725493131311,0.00610886,2455.9,2455.6,0.78]
[1725493131507,0.40722,2455.8,2455.5,0.37370886]
[1725493132513,0.40722,2455.8,2455.5,3.58150886]
[1725493133609,0.40722,2455.8,2455.5,3.98876886]
[1725493134917,0.41331886,2455.9,2455.5,3.98876886]
[1725493136710,0.40722,2455.8,2455.5,3.98876886]
[1725493136910,0.40722,2455.8,2455.5,0.78096886]
[1725493137217,0.00610886,2455.9,2455.5,0.78095886]
[1725493137218,0.41331886,2455.9,2455.5,0.78095886]
[1725493137719,0.41331886,2455.9,2455.6,0.40725]
[1725493138316,0.00610886,2455.9,2455.7,0.40722]
[1725493138513,0.00610886,2455.9,2455.8,0.7254]
[1725493139819,0.00610886,2455.9,2455.8,1.13261]
[1725493141321,0.00610886,2455.9,2455.8,5.20461]
[1725493144527,0.00610886,2455.9,2455.8,1.13261]
[1725493146525,0.00610886,2455.9,2455.8,0.7254]
[1725493146726,3.21390886,2455.9,2455.5,0.78096886]
[1725493146923,1.57722,2455.8,2455.5,1.11610886]
[1725493147727,1.17,2455.8,2455.6,0.40724]
[1725493147918,3.21390886,2455.9,2455.6,0.40725]
[1725493148230,3.21390886,2455.9,2455.5,4.32390886]
[1725493148526,0.00610886,2455.9,2455.6,0.40723]
[1725493148723,1.17,2455.8,2455.6,0.40723]
[1725493149324,1.17,2455.8,2455.5,4.32390886]
[1725493149325,5.242,2455.7,2455.5,0.00610886]
[1725493149533,4.82476169,2455.6,2454.8,3.5667]
[1725493149826,1.17,2454.9,2454.4,3.3028]
[1725493150028,1.17,2454.7,2454.4,3.2078]
[1725493150322,1.17,2454.7,2454.3,0.3589]
[1725493150323,4.3778,2454.7,2454.3,0.3589]
[1725493150724,4.3778,2454.7,2454.3,0.77246886]
[1725493151320,4.3778,2454.7,2454.3,0.36500886]
[1725493151522,4.3778,2454.7,2454.3,0.77246886]
[1725493151727,1.17,2454.7,2454.3,0.77246886]
[1725493151918,3.61848,2454.8,2454.3,0.77246886]
[1725493152116,3.61848,2454.8,2454.3,1.14836886]
[1725493152320,3.2111,2454.8,2454.3,1.14836886]
[1725493153624,3.2111,2454.8,2454.4,0.40744]
[1725493154021,3.2111,2454.8,2454.3,4.35616886]
[1725493154222,3.2111,2454.8,2454.3,4.35615886]
[1725493154529,3.2111,2454.8,2454.4,0.40744]
[1725493155230,6.43516,2455.0,2454.5,0.40743]
[1725493156029,6.0278,2455.0,2454.6,0.40741]
[1725493156626,3.2078,2455.0,2454.3,6.76870886]
[1725493156936,3.2078,2455.0,2454.8,0.40737]
[1725493158135,3.2078,2455.0,2454.9,0.40736]
[1725493158534,0.3699,2455.1,2454.8,0.40737]
[1725493159432,0.77723,2455.1,2454.8,0.40737]
[1725493159637,2.82,2455.0,2454.7,0.80119]
[1725493160334,0.40737,2454.9,2454.6,3.6152]
[1725493160539,3.22739,2454.8,2454.6,3.2078]
[1725493161331,2.82,2454.8,2454.6,3.2078]
[1725493161527,3.22738,2454.8,2454.6,3.2078]
[1725493162428,2.82,2454.8,2454.6,3.2078]
[1725493162734,0.40745,2454.4,2454.3,0.00610886]
[1725493162940,3.22745,2454.4,2454.3,0.00610886]
[1725493163136,2.82,2454.4,2454.3,0.00610886]
[1725493163331,3.22745,2454.4,2454.3,0.00610886]
[1725493164831,2.82,2454.4,2454.3,0.00610886]
[1725493165234,0.00610886,2454.6,2454.3,0.41355886]
[1725493165438,0.41352886,2454.6,2454.3,0.00610886]
[1725493165754,3.23352886,2454.6,2454.3,0.00610886]
[1725493167838,0.40743,2454.5,2454.3,0.00610886]
[1725493168543,3.23352886,2454.6,2454.3,0.41356886]
[1725493169437,3.23352886,2454.6,2454.3,0.00610886]
[1725493169945,3.23352886,2454.6,2454.3,0.41356886]
[1725493170336,0.00610886,2454.6,2454.3,0.00610886]
[1725493170645,0.00610886,2454.6,2454.4,0.3847]
[1725493170847,0.00610886,2454.6,2454.4,0.7686]
[1725493172544,0.00610886,2454.6,2454.4,1.17605]
[1725493173046,0.00610886,2454.6,2454.4,0.7686]
[1725493173445,3.23352886,2454.6,2454.3,0.00610886]
[1725493174651,0.40743,2454.5,2454.3,0.00610886]
[1725493175146,3.22745,2454.4,2454.3,0.00610886]
[1725493175351,2.82,2454.4,2454.3,0.00610886]
[1725493175849,3.23352886,2454.6,2454.3,0.00610886]
[1725493176442,0.40743,2454.5,2454.3,0.00610886]
[1725493176637,2.82610886,2454.6,2454.3,0.00610886]
[1725493176839,3.23352886,2454.6,2454.3,0.00610886]
[1725493177352,0.40743,2454.5,2454.3,0.00610886]
[1725493177553,3.23353886,2454.6,2454.3,0.00610886]
[1725493178552,2.82610886,2454.6,2454.3,0.41355886]
[1725493178754,2.82610886,2454.6,2454.4,0.3718]
[1725493179154,3.23351886,2454.6,2454.5,0.3694]
[1725493181645,0.40745,2454.4,2454.3,0.00610886]
[1725493182756,0.78004,2454.5,2454.3,0.00610886]
[1725493183446,0.40744,2454.5,2454.3,0.00610886]
[1725493184659,0.40744,2454.5,2454.3,0.39760886]
[1725493184960,0.40743,2454.5,2454.4,0.367]
[1725493188057,1.57743,2454.5,2454.4,0.367]
[1725493189554,5.2444,2454.5,2454.3,0.39760886]
[1725493189752,0.00610886,2454.6,2454.4,0.76585]
[1725493189956,1.17610886,2454.6,2454.4,0.76585]
[1725493191452,1.58352886,2454.6,2454.4,0.3584]
[1725493191860,1.17610886,2454.6,2454.3,0.39760886]
[1725493192162,1.57745,2454.4,2454.3,0.39760886]
[1725493193559,1.17,2454.4,2454.3,0.39760886]
[1725493193764,1.17,2454.4,2454.3,0.80506886]
[1725493193968,3.62312886,2454.6,2454.3,0.80506886]
[1725493194165,8.8478,2454.4,2453.8,3.2078]
[1725493194353,0.40765,2453.2,2453.1,0.095]
[1725493194558,0.40765,2453.2,2452.4,3.81538988]
[1725493194559,3.2078,2453.2,2452.4,3.81538988]
[1725493194763,3.2078,2453.2,2452.8,4.0744]
[1725493194764,0.4077,2452.9,2452.8,4.0744]
[1725493195062,3.6155,2452.9,2452.8,4.0744]
[1725493195560,3.2078,2452.9,2452.8,4.0744]
[1725493195753,13.2846,2452.9,2452.1,0.3836]
[1725493195959,6.0278,2452.6,2452.4,4.0744]
[1725493196159,6.0278,2452.6,2452.4,12.82542331]
[1725493196458,6.0278,2452.6,2452.4,4.0744]
[1725493197661,1.77899886,2453.1,2453.0,0.40768]
[1725493197662,0.00610886,2453.1,2453.0,0.40768]
[1725493197967,3.2078,2453.3,2453.0,4.47596114]
[1725493198167,3.2078,2453.3,2453.2,4.06829114]
[1725493198363,3.2078,2453.3,2453.2,4.47594114]
[1725493198558,3.2078,2453.3,2453.2,4.83184114]
[1725493199064,3.2078,2453.3,2453.2,4.42419114]
[1725493199262,3.2078,2453.3,2453.2,4.83184114]
[1725493201468,0.00610886,2453.5,2453.2,4.83184114]
[1725493201667,0.00610886,2453.5,2453.4,4.06829114]
[1725493201856,0.00610886,2453.5,2453.2,0.40765]
[1725493202061,0.00610886,2453.5,2452.9,0.00610886]
[1725493202062,2.82,2453.3,2452.9,0.00610886]
[1725493202269,6.43548,2453.0,2452.9,0.00610886]
[1725493203176,2.82,2452.4,2452.1,0.095]
[1725493203361,3.2078,2452.3,2452.0,0.3676]
[1725493203873,3.2078,2452.3,2452.2,4.06829114]
[1725493204964,3.2078,2452.3,2451.9,0.40785]
[1725493205266,3.2078,2452.3,2452.1,4.06829114]
[1725493205567,3.2078,2452.3,2452.2,4.06829114]
[1725493205869,2.82,2452.6,2452.3,0.40779]
[1725493206163,2.82,2452.6,2452.4,0.40777]
[1725493206164,6.0278,2452.6,2452.4,0.40777]
[1725493206368,6.0278,2452.6,2452.5,4.06829114]
[1725493208065,2.82,2452.6,2452.5,4.06829114]
[1725493209369,2.82,2452.6,2452.5,4.47605114]
[1725493209568,3.2078,2453.2,2452.9,3.97329114]
[1725493209762,3.2078,2453.4,2453.3,0.40762]
[1725493209969,0.00610886,2453.5,2453.4,4.38090114]
[1725493213074,0.00610886,2453.5,2453.4,7.58870114]
[1725493213571,0.3759,2454.0,2453.7,0.40756]
[1725493213778,0.3759,2454.0,2453.9,3.97329114]
[1725493216082,6.9678,2454.1,2453.9,3.97329114]
[1725493216279,3.2078,2454.1,2454.0,3.97329114]
[1725493218875,3.2078,2454.1,2454.0,4.38080114]
[1725493219071,0.00610886,2454.2,2454.0,4.38080114]
[1725493219278,0.00610886,2454.2,2454.0,0.40751]
[1725493219482,0.00610886,2454.2,2454.1,3.97329114]
[1725493220386,0.00610886,2454.2,2454.1,4.38079114]
[1725493221578,0.00610886,2454.2,2454.1,3.97329114]
[1725493221993,0.00610886,2454.2,2454.1,4.38079114]
[1725493229895,3.2078,2454.4,2454.1,4.38079114]
[1725493230092,3.20383785,2454.4,2454.3,3.97329114]
[1725493233708,3.20383785,2454.4,2454.3,4.38075114]
[1725493235898,3.20383785,2454.4,2454.3,3.97329114]
[1725493236103,3.20383785,2454.4,2454.3,4.38075114]
[1725493236305,3.20383785,2454.4,2454.3,3.97329114]
[1725493237092,3.20383785,2454.4,2454.3,4.38075114]
[1725493242005,3.20383785,2454.4,2454.3,3.97329114]
[1725493242506,3.20383785,2454.4,2454.3,4.38075114]
[1725493243300,3.20383785,2454.4,2454.3,3.97329114]
[1725493243702,3.20383785,2454.4,2454.3,4.38075114]
[1725493245103,3.20383785,2454.4,2454.3,3.97329114]
[1725493245811,3.20383785,2454.4,2454.3,4.38075114]
[1725493247001,3.20383785,2454.4,2454.3,3.97329114]
[1725493247202,3.20383785,2454.4,2454.3,4.38075114]
[1725493247506,3.20383785,2454.4,2454.3,3.97329114]
[1725493248207,0.40755,2453.8,2453.7,0.00610886]
[1725493248402,3.61535,2453.8,2453.7,3.9794]
[1725493248605,6.0278,2453.8,2453.7,3.9794]
[1725493248815,3.2078,2453.8,2453.7,3.9794]
[1725493249210,3.61535,2453.8,2453.7,3.9794]
[1725493249413,3.2078,2453.8,2453.7,3.9794]
[1725493249611,3.2078,2453.8,2453.7,4.38696]
[1725493249816,3.2078,2454.1,2453.9,0.40752]
[1725493250108,3.2078,2454.1,2453.7,0.41365886]
[1725493250109,3.61531,2454.1,2453.7,0.41365886]
[1725493250307,0.40753,2454.0,2453.9,3.97329114]
[1725493251309,3.6153,2454.1,2453.9,3.97329114]
[1725493255422,3.2078,2454.1,2453.9,4.38082114]
[1725493255610,3.6153,2454.1,2453.9,3.97329114]
[1725493256014,3.2078,2454.1,2453.9,4.38082114]
[1725493256215,3.6153,2454.1,2453.9,4.38082114]
[1725493256419,3.2078,2454.1,2453.9,3.97329114]
[1725493256614,1.15508,2454.2,2454.0,3.97329114]
[1725493256919,3.9554,2454.2,2454.1,3.97329114]
[1725493257625,6.7754,2454.2,2453.7,0.00610886]
[1725493257810,6.7754,2454.2,2453.7,3.9794]
[1725493257811,3.2078,2453.9,2453.7,3.9794]
[1725493258014,0.40755,2453.8,2453.7,0.00610886]
[1725493258313,3.61385,2453.8,2453.7,0.00610886]
[1725493258518,13.68905,2453.8,2453.7,0.00610886]
[1725493258817,9.61385,2453.8,2453.7,0.00610886]
[1725493259011,3.61385,2453.8,2453.7,0.00610886]
[1725493259726,3.2063,2453.8,2453.7,0.00610886]
[1725493259923,2.82,2453.8,2453.7,0.00610886]
[1725493260619,2.82,2453.8,2453.7,3.9794]
[1725493261214,2.82,2453.8,2452.8,0.095]
[1725493261215,1.01899,2453.6,2452.8,0.095]
[1725493261514,1.01899,2453.6,2452.4,5.79199257]
[1725493261515,6.4355,2452.9,2452.5,0.40776]
[1725493261717,0.3586,2452.8,2452.7,3.97329114]
[1725493262023,0.40778,2452.5,2452.4,3.97329114]
[1725493262218,6.43558,2452.5,2452.4,3.97329114]
[1725493262517,6.0278,2452.5,2452.2,0.00610886]
[1725493262724,6.0278,2452.5,2452.3,3.97329114]
[1725493263516,3.2078,2452.5,2452.3,3.97329114]
[1725493263722,3.2078,2452.5,2452.4,3.97329114]
[1725493264221,3.61556,2452.5,2452.4,3.97329114]
[1725493264727,3.2078,2452.5,2452.4,3.97329114]
[1725493265225,3.61556,2452.5,2452.4,3.97329114]
[1725493265423,3.2078,2452.5,2452.4,3.97329114]
[1725493265726,0.40775,2452.6,2452.4,3.97329114]
[1725493266027,0.40775,2452.6,2452.5,3.97329114]
[1725493266323,3.2078,2452.6,2452.5,3.97329114]
[1725493267324,3.61555,2452.6,2452.5,3.97329114]
[1725493267622,0.40777,2452.5,2452.2,0.00610886]
[1725493267822,0.40777,2452.5,2452.3,3.97329114]
[1725493268715,3.2078,2452.6,2452.3,3.97329114]
[1725493268716,3.61556,2452.6,2452.3,3.97329114]
[1725493270420,3.2078,2452.6,2452.5,3.97329114]
[1725493270621,3.2078,2452.6,2452.5,4.38105114]
[1725493270818,3.2078,2452.6,2452.5,3.97329114]
[1725493272129,3.61555,2452.6,2452.5,3.97329114]
[1725493278422,3.2078,2452.6,2452.5,3.97329114]
[1725493280229,3.2078,2452.6,2452.5,4.38105114]
[1725493280426,0.00610886,2452.7,2452.5,4.38105114]
[1725493280427,0.41383886,2452.7,2452.5,3.97329114]
[1725493280633,0.00610886,2452.7,2452.6,3.97329114]
[1725493280929,0.41383886,2452.7,2452.6,3.97329114]
[1725493282832,3.23383886,2452.7,2452.6,3.97329114]
[1725493284834,0.41383886,2452.7,2452.6,3.97329114]
[1725493285027,0.00610886,2452.7,2452.6,3.97329114]
[1725493285736,0.41383886,2452.7,2452.6,3.97329114]
[1725493287335,3.84546886,2452.7,2452.3,0.3752]
[1725493287541,0.40776,2452.5,2452.4,3.97329114]
[1725493288028,3.61555,2452.6,2452.4,3.97329114]
[1725493288233,0.40775,2452.6,2452.5,3.97329114]
[1725493288438,3.61555,2452.6,2452.5,3.97329114]
[1725493288937,0.40777,2452.5,2452.3,0.3752]
[1725493289135,0.40777,2452.5,2452.4,3.97329114]
[1725493290138,3.2078,2452.6,2452.4,3.97329114]
[1725493290340,3.2078,2452.6,2452.5,3.97329114]
[1725493290538,0.00610886,2452.7,2452.5,3.97329114]
[1725493290732,0.00610886,2452.7,2452.6,3.97329114]
[1725493294030,0.41383886,2452.7,2452.6,3.97329114]
[1725493294332,3.23383886,2452.7,2452.6,3.97329114]
[1725493298646,3.6156,2452.3,2452.2,0.00610886]
[1725493298836,3.6156,2452.3,2452.2,3.3882]
[1725493302038,2.82,2452.4,2452.2,3.3882]
[1725493302039,3.22779,2452.4,2452.2,3.3882]
[1725493302247,3.22779,2452.4,2452.3,3.38209114]
[1725493304142,6.43559,2452.4,2452.3,3.38209114]
[1725493304443,3.61559,2452.4,2452.3,3.38209114]
[1725493304652,3.2078,2452.4,2452.3,3.38209114]
[1725493305045,3.2078,2452.4,2452.3,3.78989114]
[1725493305244,3.2078,2452.4,2452.3,3.38209114]
[1725493305540,3.61558,2452.4,2452.3,3.38209114]
[1725493310151,0.4078,2452.3,2452.2,0.00610886]
[1725493310351,3.6156,2452.3,2452.2,0.00610886]
[1725493310557,3.6156,2452.3,2452.2,3.3882]
[1725493313046,3.6156,2452.3,2452.2,0.00610886]
[1725493314552,7.8448,2452.3,2452.2,0.00610886]
[1725493314743,0.40791,2451.7,2451.5,0.095]
[1725493314947,0.40791,2451.7,2451.6,0.3904]
[1725493315149,0.40791,2451.7,2451.6,3.77249114]
[1725493315347,0.40791,2451.7,2451.6,3.38209114]
[1725493317254,6.43569,2451.8,2451.6,3.38209114]
[1725493317457,6.43569,2451.8,2451.7,3.38209114]
[1725493319653,6.0278,2451.8,2451.7,3.38209114]
[1725493320056,4.3778,2451.8,2451.7,3.75779114]
[1725493320256,4.78568,2451.8,2451.7,3.75779114]
[1725493320459,4.4728,2452.2,2452.0,0.40783]
[1725493320766,3.2078,2452.2,2452.1,4.53359114]
[1725493321059,1.57779,2452.4,2452.2,0.40781]
[1725493321557,1.57779,2452.4,2452.3,3.38209114]
[1725493323054,1.17,2452.4,2452.3,3.38209114]
[1725493323250,3.2078,2452.5,2452.3,3.78989114]
[1725493323456,4.78557,2452.5,2452.4,3.38209114]
[1725493324960,4.3778,2452.5,2452.4,3.38209114]
[1725493325462,3.2078,2452.5,2452.4,3.78987114]
[1725493328063,3.2078,2452.5,2452.4,4.95987114]
[1725493328863,3.2078,2452.5,2452.4,3.78987114]
[1725493329258,4.78556,2452.5,2452.4,3.38209114]
[1725493329467,4.3778,2452.5,2452.4,3.38209114]
[1725493331268,4.78556,2452.5,2452.4,3.38209114]
[1725493333059,3.2078,2452.5,2452.4,3.38209114]
[1725493334064,4.3778,2452.5,2452.4,3.38209114]
[1725493334867,4.78556,2452.5,2452.4,3.38209114]
[1725493335165,5.80497,2452.5,2452.4,3.38209114]
[1725493335868,5.80497,2452.5,2451.7,0.40788]
[1725493335869,0.40785,2452.0,2451.7,0.40788]
[1725493336065,0.40785,2452.0,2451.8,0.3694]
[1725493336266,1.57785,2452.0,2451.9,3.38209114]
[1725493337566,0.40785,2452.0,2451.9,3.38209114]
[1725493338972,1.57785,2452.0,2451.9,3.38209114]
[1725493339166,1.96445,2452.0,2451.9,3.38209114]
[1725493339972,0.40786,2451.9,2451.8,0.3694]
[1725493340361,0.40786,2451.9,2451.8,3.75149114]
[1725493341378,1.96446,2452.0,2451.8,3.75149114]
[1725493341677,0.40786,2451.9,2451.8,0.3694]
[1725493342273,0.40786,2451.9,2451.8,3.38209114]
[1725493343472,0.78136,2451.9,2451.8,3.38209114]
[1725493343673,0.78136,2451.9,2451.0,0.095]
[1725493343674,0.40798,2451.2,2451.0,0.095]
[1725493343865,4.63573,2451.2,2451.1,3.38209114]
[1725493344267,3.97208,2451.2,2451.1,3.38209114]
[1725493344460,3.2078,2451.2,2451.1,3.38209114]
[1725493344664,4.3778,2451.2,2451.1,3.38209114]
[1725493345265,4.78578,2451.2,2451.1,3.38209114]
[1725493346073,6.43578,2451.2,2451.1,3.38209114]
[1725493347076,6.0278,2451.2,2451.1,3.38209114]
[1725493347268,6.43578,2451.2,2451.1,3.38209114]
[1725493351565,3.2078,2451.2,2451.1,3.38209114]
[1725493351769,3.2078,2451.2,2451.1,3.79009114]
[1725493352276,3.2078,2451.2,2451.1,3.38209114]
[1725493354570,3.2078,2451.2,2451.1,3.79009114]
[1725493355581,3.2078,2451.2,2451.1,3.38209114]
[1725493355781,3.2078,2451.2,2451.1,3.79009114]
[1725493356676,3.2078,2451.2,2451.1,3.38209114]
[1725493357182,0.41406886,2451.3,2451.1,3.38209114]
[1725493357377,0.41406886,2451.3,2451.2,3.38209114]
[1725493358977,0.00610886,2451.3,2451.2,3.38209114]
[1725493359484,0.00610886,2451.3,2451.2,3.73819114]
[1725493360580,0.41406886,2451.3,2451.2,3.73819114]
[1725493362985,0.00610886,2451.3,2450.8,0.7514]
[1725493363185,3.2078,2451.1,2450.8,0.7514]
[1725493363381,0.40801,2451.0,2450.8,1.15944]
[1725493363685,0.40801,2451.0,2450.8,0.7514]
[1725493363879,0.40801,2451.0,2450.9,3.38209114]
[1725493367791,0.00610886,2451.3,2450.9,3.38209114]
[1725493367989,0.00610886,2451.3,2451.2,3.38209114]
[1725493368589,0.41406886,2451.3,2451.2,3.73919114]
[1725493369091,0.00610886,2451.3,2451.2,3.73919114]
[1725493370388,0.41406886,2451.3,2451.2,3.73919114]
[1725493370587,0.00610886,2451.3,2451.2,3.73919114]
[1725493371389,0.00610886,2451.3,2451.2,4.14717114]
[1725493371891,0.00610886,2451.3,2451.2,3.73919114]
[1725493372285,0.00610886,2451.3,2451.2,4.14717114]
[1725493376592,0.20302994,2452.0,2451.5,1.01983]
[1725493376796,0.40784,2452.1,2451.9,0.40786]
[1725493376990,0.40784,2452.1,2452.0,0.7332]
[1725493377588,1.58784,2452.1,2452.0,0.7332]
[1725493379999,3.22784,2452.1,2452.0,0.7332]
[1725493380595,3.22784,2452.1,2451.8,0.40787]
[1725493380596,0.40785,2452.0,2451.8,0.40787]
[1725493382091,2.82,2452.1,2451.9,0.40786]
[1725493382092,3.22784,2452.1,2451.9,0.40786]
[1725493383006,3.22784,2452.1,2451.4,0.095]
[1725493383007,1.01966,2451.9,2451.4,0.095]
[1725493383201,0.4079,2451.7,2451.4,0.79234]
[1725493384002,3.581,2451.8,2451.4,0.79234]
[1725493384003,3.581,2451.8,2451.4,0.3844]
[1725493384307,0.40792,2451.6,2451.4,0.3844]
[1725493385004,0.40793,2451.5,2451.4,0.3844]
[1725493385304,6.0278,2451.6,2451.1,0.00610886]
[1725493385498,0.40797,2451.3,2451.1,0.00610886]
[1725493385903,0.77515,2451.4,2451.1,0.00610886]
[1725493386496,0.3672,2451.4,2451.1,0.41409886]
[1725493386808,6.43572,2451.6,2451.2,0.40798]
[1725493387000,0.40793,2451.5,2451.1,0.41408886]
[1725493387203,2.82,2451.2,2451.1,0.00610886]
[1725493387398,3.02733444,2451.2,2450.6,0.095]
[1725493387601,3.02733444,2451.2,2450.6,0.3689]
[1725493387602,2.82,2450.8,2450.6,0.3689]
[1725493387803,3.22805,2450.8,2450.6,0.3689]
[1725493388304,2.82,2450.8,2450.6,0.3689]
[1725493388695,0.00610886,2450.9,2450.6,0.77697]
[1725493388901,0.00610886,2450.9,2450.6,0.3689]
[1725493390708,0.00610886,2450.9,2450.6,0.77698]
[1725493391802,0.00610886,2450.9,2450.7,0.40806]
[1725493392405,0.00610886,2450.9,2450.6,0.3689]
[1725493392608,0.00610886,2450.9,2450.7,0.40806]
[1725493392807,0.00610886,2450.9,2450.8,0.40805]
[1725493395603,0.00610886,2450.9,2450.7,0.40805]
[1725493396308,0.00610886,2450.9,2450.6,0.77697]
[1725493396613,0.00610886,2450.9,2450.7,0.40805]
[1725493397306,0.00610886,2450.9,2450.6,0.77697]
[1725493397508,0.00610886,2450.9,2450.7,0.40806]
[1725493397702,0.00610886,2450.9,2450.6,0.77697]
[1725493398809,0.40805,2450.8,2450.6,0.3689]
[1725493399407,0.41414886,2450.9,2450.6,0.3689]
[1725493399916,0.41414886,2450.9,2450.6,0.77698]
[1725493400210,0.00610886,2450.9,2450.6,0.77697]
[1725493400604,0.00610886,2450.9,2450.6,3.5767]
[1725493401010,0.00610886,2450.9,2450.7,0.40805]
[1725493401405,0.00610886,2450.9,2450.6,3.5767]
[1725493401406,0.00610886,2450.9,2450.8,0.40805]
[1725493401818,0.00610886,2450.9,2450.7,0.40805]
[1725493402018,0.00610886,2450.9,2450.6,3.5767]
[1725493402420,0.00610886,2450.9,2450.8,0.40805]
[1725493407014,0.40796,2451.4,2450.8,4.08]
[1725493407215,0.40796,2451.4,2450.9,0.3815]
[1725493407216,0.40795,2451.4,2450.9,0.3815]
[1725493407415,0.40796,2451.3,2451.0,0.40801]
[1725493407615,0.40796,2451.4,2451.1,0.3752]
[1725493408220,0.40796,2451.3,2451.1,0.3752]
[1725493408417,0.40796,2451.4,2451.1,0.3752]
[1725493408620,0.40796,2451.4,2451.1,0.78319]
[1725493409117,3.60084886,2451.5,2451.2,0.40798]
[1725493409320,3.60084886,2451.5,2451.1,0.3752]
[1725493409622,3.60084886,2451.5,2451.1,0.78318]
[1725493409816,3.60084886,2451.5,2451.2,0.40798]
[1725493410021,3.60084886,2451.5,2451.1,0.3752]
[1725493410022,3.19290886,2451.5,2451.1,0.3752]
[1725493410219,3.19290886,2451.5,2451.3,0.40795]
[1725493410220,0.00610886,2451.5,2451.3,0.40795]
[1725493410427,0.00610886,2451.5,2451.4,0.7294]
[1725493414827,0.41403886,2451.5,2451.4,0.7294]
[1725493415323,0.00610886,2451.5,2451.4,0.7294]
[1725493415526,0.41403886,2451.5,2451.4,0.7294]
[1725493415826,0.00610886,2451.5,2451.4,0.7294]
[1725493416027,6.90530886,2451.5,2451.1,0.3752]
[1725493416223,0.40796,2451.4,2451.1,1.1275]
[1725493416422,0.40796,2451.4,2451.1,1.53549]
[1725493416625,0.40798,2451.2,2451.1,1.1275]
[1725493416818,0.408,2451.1,2451.0,0.00610886]
[1725493420030,1.428,2451.1,2451.0,0.00610886]
[1725493421324,5.508,2451.1,2451.0,0.00610886]
[1725493426334,4.488,2451.1,2451.0,0.00610886]
[1725493426534,0.408,2451.1,2451.0,0.00610886]
[1725493429639,2.82,2451.2,2451.0,0.00610886]
[1725493429841,0.408,2451.1,2451.0,0.00610886]
[1725493431236,0.408,2451.1,2451.0,0.75780886]
[1725493435950,1.588,2451.1,2451.0,0.75780886]
[1725493436535,1.588,2451.1,2451.0,0.00610886]
[1725493436536,9.8958,2451.1,2451.0,0.00610886]
[1725493437144,10.10343194,2451.1,2451.0,0.00610886]
[1725493437441,16.10343194,2451.1,2451.0,0.00610886]
[1725493437942,0.40806,2450.7,2450.6,1.1371]
[1725493438145,3.22806,2450.7,2450.6,0.3891]
[1725493438447,7.70046,2450.7,2450.6,0.3891]
[1725493438833,0.40809,2450.6,2450.4,0.7329]
[1725493439846,0.4081,2450.5,2450.4,0.7329]
[1725493440053,0.40813,2450.3,2450.2,3.2078]
[1725493440341,0.40813,2450.3,2449.8,0.095]
[1725493440342,0.4082,2449.9,2449.8,0.095]
[1725493440544,0.40825,2449.6,2449.4,1.1411]
[1725493440739,0.40823,2449.8,2449.4,1.1411]
[1725493440939,3.2078,2449.8,2449.4,1.1411]
[1725493441140,0.40822,2449.8,2449.4,1.1411]
[1725493442149,0.40823,2449.7,2449.4,1.1411]
[1725493442336,2.82,2449.9,2449.4,1.1411]
[1725493442545,0.00612132,2450.1,2449.7,0.40821]
[1725493442848,0.00612132,2450.1,2449.8,0.3939]
[1725493443144,0.00612132,2450.1,2449.9,1.18309]
[1725493443537,0.00612132,2450.1,2450.0,0.40818]
[1725493443847,0.00612132,2450.1,2450.0,7.69758]
[1725493444044,0.00612132,2450.1,2450.0,7.2894]
[1725493444250,0.00612132,2450.1,2450.0,7.69758]
[1725493444751,3.3028,2450.7,2450.4,0.40811]
[1725493444941,0.40805,2450.8,2450.5,0.7803]
[1725493445341,3.22804,2450.9,2450.5,0.7803]
[1725493445741,3.43371306,2450.9,2450.5,0.78642132]
[1725493446344,2.82612132,2450.9,2450.5,1.19451132]
[1725493446650,0.00612132,2450.9,2450.7,0.40805]
[1725493447849,0.00612132,2450.9,2450.8,0.78275]
[1725493448252,0.00612132,2450.9,2450.8,0.3747]
[1725493448558,0.00612132,2450.9,2450.8,0.78275]
[1725493450654,0.00612132,2450.9,2450.8,4.86275]
[1725493450846,0.095,2451.5,2451.2,0.40797]
[1725493451054,2.82,2451.6,2451.3,0.3672]
[1725493451351,3.22791,2451.6,2451.3,0.3672]
[1725493451550,2.82,2451.4,2451.3,0.3672]
[1725493452552,3.22795,2451.4,2450.9,0.40802]
[1725493452760,2.82,2451.4,2451.0,0.40801]
[1725493452959,2.82,2451.4,2451.1,0.408]